bitfinex/quotes_BTCUSD_20240918
["timestamp","ask_amount","ask_price","bid_price","bid_amount"]
[1726672191571,0.16305367,59709.0,59703.0,0.334989]
[1726672191826,0.16305367,59709.0,59704.0,0.334984]
[1726672192044,0.33053267,59709.0,59705.0,0.167489]
[1726672192964,0.16305367,59709.0,59705.0,0.33498]
[1726672193212,0.334927,59715.0,59707.0,0.334966]
[1726672193425,0.33051867,59714.0,59707.0,0.334966]
[1726672193641,0.16747,59713.0,59707.0,0.334966]
[1726672193850,0.33052367,59713.0,59707.0,0.334966]
[1726672194064,0.33052367,59713.0,59706.0,0.334972]
[1726672194065,0.167476,59710.0,59706.0,0.334972]
[1726672194278,0.167476,59710.0,59707.0,0.001642]
[1726672194512,0.167471,59712.0,59707.0,0.001642]
[1726672194722,0.334947,59711.0,59707.0,0.001642]
[1726672194938,0.16305367,59713.0,59707.0,0.001642]
[1726672194939,0.167472,59712.0,59707.0,0.001642]
[1726672195388,0.167474,59711.0,59707.0,0.001642]
[1726672195633,0.167481,59708.0,59707.0,0.001642]
[1726672195845,0.502444,59708.0,59707.0,0.001642]
[1726672196270,0.837407,59708.0,59707.0,0.001642]
[1726672196504,0.502444,59708.0,59707.0,0.001642]
[1726672196742,0.51613157,59708.0,59707.0,0.001642]
[1726672198267,0.18116857,59708.0,59707.0,0.001642]
[1726672198711,0.18116857,59708.0,59707.0,0.002642]
[1726672199871,0.51613157,59708.0,59707.0,0.002642]
[1726672200393,1.01414824,59708.0,59707.0,0.002642]
[1726672201006,1.78807424,59708.0,59707.0,0.002642]
[1726672201257,1.45111124,59708.0,59707.0,0.002642]
[1726672202428,1.45111124,59708.0,59707.0,0.001642]
[1726672202642,1.11614824,59708.0,59707.0,0.001642]
[1726672202860,1.12614824,59708.0,59707.0,0.002642]
[1726672203092,1.73901124,59708.0,59707.0,0.001642]
[1726672203309,1.34404824,59708.0,59707.0,0.001642]
[1726672203526,1.31404824,59708.0,59707.0,0.001642]
[1726672203744,1.34404824,59708.0,59707.0,0.001642]
[1726672203945,0.64412224,59708.0,59707.0,0.001642]
[1726672204165,0.37664124,59708.0,59707.0,0.001642]
[1726672204378,0.19974124,59708.0,59707.0,0.001642]
[1726672204594,0.17674124,59708.0,59707.0,0.001642]
[1726672205469,0.18974124,59708.0,59707.0,0.001642]
[1726672205684,0.18974124,59708.0,59707.0,0.169126]
[1726672205685,0.17674124,59708.0,59707.0,0.169126]
[1726672205896,0.17674124,59708.0,59707.0,0.001642]
[1726672206571,0.18674124,59708.0,59707.0,0.001642]
[1726672207047,0.18674124,59708.0,59707.0,0.169126]
[1726672207293,0.68918524,59708.0,59707.0,0.001642]
[1726672207716,1.02414824,59708.0,59707.0,0.001642]
[1726672208575,1.38211124,59708.0,59707.0,0.001642]
[1726672208796,1.48411124,59708.0,59707.0,0.001642]
[1726672208995,1.48211124,59708.0,59707.0,0.001642]
[1726672210466,1.48411124,59708.0,59707.0,0.001642]
[1726672210670,1.48211124,59708.0,59707.0,0.001642]
[1726672211906,1.50839021,59708.0,59707.0,0.001642]
[1726672214042,1.48211124,59708.0,59707.0,0.001642]
[1726672218033,2.24203724,59708.0,59707.0,0.001642]
[1726672218253,2.24403724,59708.0,59707.0,0.001642]
[1726672218697,1.90907424,59708.0,59707.0,0.001642]
[1726672218937,1.98431629,59708.0,59707.0,0.001642]
[1726672219159,2.31927929,59708.0,59707.0,0.001642]
[1726672219368,1.9843101,59708.0,59707.0,0.001642]
[1726672220019,1.9743101,59708.0,59707.0,0.001642]
[1726672220249,1.97430962,59708.0,59707.0,0.001642]
[1726672220468,1.98830962,59708.0,59707.0,0.001642]
[1726672220697,1.97430962,59708.0,59707.0,0.001642]
[1726672221126,1.98830962,59708.0,59707.0,0.001642]
[1726672221341,1.91307424,59708.0,59707.0,0.001642]
[1726672221607,1.51611124,59708.0,59707.0,0.001642]
[1726672221831,1.50411124,59708.0,59707.0,0.001642]
[1726672222049,1.50211124,59708.0,59707.0,0.001642]
[1726672222269,1.86707424,59708.0,59707.0,0.001642]
[1726672222483,1.89907424,59708.0,59707.0,0.001642]
[1726672222921,2.23403724,59708.0,59707.0,0.001642]
[1726672223149,2.48337262,59708.0,59707.0,0.001642]
[1726672223385,2.48337262,59708.0,59694.0,0.001642]
[1726672223386,1.45108145,59695.0,59694.0,0.001642]
[1726672223600,1.61413512,59695.0,59694.0,0.001642]
[1726672223820,1.29258402,59695.0,59694.0,0.001642]
[1726672224251,0.80209257,59695.0,59694.0,0.001642]
[1726672224698,1.29258402,59695.0,59694.0,0.001642]
[1726672225125,1.30358402,59695.0,59694.0,0.001642]
[1726672226473,1.66690438,59695.0,59694.0,0.001642]
[1726672226719,1.68590438,59695.0,59694.0,0.001642]
[1726672226937,1.68390438,59695.0,59694.0,0.001642]
[1726672227152,1.69890438,59695.0,59694.0,0.001642]
[1726672227368,1.68390438,59695.0,59694.0,0.001642]
[1726672227602,1.66766406,59695.0,59694.0,0.001642]
[1726672227841,1.67866406,59695.0,59694.0,0.001642]
[1726672228549,1.66766406,59695.0,59694.0,0.001642]
[1726672229182,2.18600006,59695.0,59694.0,0.001642]
[1726672229450,2.18600006,59695.0,59676.0,0.0002437]
[1726672229451,0.860842,59677.0,59676.0,0.0002437]
[1726672229699,0.68875867,59677.0,59676.0,0.0002437]
[1726672229919,0.7020634,59677.0,59676.0,0.0002437]
[1726672230134,1.1672004,59677.0,59676.0,0.0002437]
[1726672230780,1.17925265,59677.0,59676.0,0.0002437]
[1726672231027,0.84411565,59677.0,59676.0,0.0002437]
[1726672231244,0.84211565,59677.0,59676.0,0.0002437]
[1726672231671,0.50697865,59677.0,59676.0,0.0002437]
[1726672231878,0.52097865,59677.0,59676.0,0.0002437]
[1726672232140,0.31841736,59677.0,59676.0,0.0002437]
[1726672233009,0.21841736,59677.0,59676.0,0.0002437]
[1726672233440,0.20441736,59677.0,59676.0,0.0002437]
[1726672233871,0.21841736,59677.0,59676.0,0.0002437]
[1726672234968,0.20441736,59677.0,59676.0,0.0002437]
[1726672235387,0.21841736,59677.0,59676.0,0.0002437]
[1726672236336,0.21841736,59677.0,59676.0,0.1678147]
[1726672236548,0.03236369,59677.0,59676.0,0.1678147]
[1726672236975,0.014,59677.0,59676.0,0.1678147]
[1726672238091,0.014,59677.0,59676.0,0.2612147]
[1726672238303,0.466,59692.0,59691.0,0.167529]
[1726672238513,0.16305367,59692.0,59691.0,0.167529]
[1726672238765,0.18127746,59692.0,59691.0,0.167529]
[1726672239614,0.20427746,59692.0,59691.0,0.167529]
[1726672239828,0.20427746,59692.0,59691.0,0.502587]
[1726672240054,0.04028209,59692.0,59691.0,0.837645]
[1726672240306,0.014,59692.0,59691.0,1.172703]
[1726672240731,0.014,59692.0,59691.0,1.607761]
[1726672240945,0.000821,59712.0,59709.0,0.167478]
[1726672241158,0.16305367,59711.0,59709.0,0.167477]
[1726672241397,0.18127746,59711.0,59707.0,0.167482]
[1726672241612,0.15545545,59708.0,59698.0,0.335018]
[1726672241830,0.000821,59712.0,59700.0,0.15545545]
[1726672242054,0.000821,59712.0,59711.0,0.502419]
[1726672242273,0.000821,59712.0,59710.0,0.33495]
[1726672242474,0.000821,59712.0,59711.0,0.502419]
[1726672242708,0.000821,59712.0,59711.0,0.167473]
[1726672242931,0.000821,59712.0,59711.0,0.837365]
[1726672243153,0.014821,59712.0,59711.0,1.172311]
[1726672243369,0.02709357,59712.0,59711.0,1.172311]
[1726672243579,0.02709357,59712.0,59711.0,0.837365]
[1726672243786,0.03409357,59712.0,59711.0,0.837365]
[1726672244427,0.007821,59712.0,59711.0,0.837365]
[1726672245281,0.000821,59712.0,59711.0,0.837365]
[1726672245496,0.000821,59712.0,59711.0,0.502419]
[1726672245702,0.000821,59712.0,59711.0,0.507419]
[1726672245922,0.56438645,59712.0,59702.0,0.334994]
[1726672246129,0.16305367,59711.0,59701.0,0.0773]
[1726672246349,0.16305367,59711.0,59702.0,0.334995]
[1726672246570,0.16305367,59711.0,59704.0,0.167492]
[1726672246788,0.16305367,59711.0,59705.0,0.167489]
[1726672246996,0.16305367,59711.0,59706.0,0.167486]
[1726672247518,0.02627504,59710.0,59706.0,0.167486]
[1726672247718,0.16305367,59709.0,59706.0,0.167486]
[1726672248557,0.16305367,59709.0,59705.0,0.167488]
[1726672248980,0.16305367,59709.0,59702.0,0.167497]
[1726672249202,0.167491,59705.0,59694.0,0.335038]
[1726672249423,0.334991,59703.0,59692.0,0.0986]
[1726672249646,0.334991,59703.0,59693.0,0.335047]
[1726672249647,0.33055367,59702.0,59693.0,0.335047]
[1726672249851,0.16305367,59702.0,59691.0,0.415956]
[1726672250052,0.16305367,59702.0,59698.0,0.167507]
[1726672251103,0.16305367,59702.0,59693.0,0.335045]
[1726672251309,0.16305367,59702.0,59696.0,0.335028]
[1726672251520,0.16305367,59702.0,59700.0,0.167501]
[1726672252133,0.16305367,59702.0,59696.0,0.335027]
[1726672252134,0.01871867,59701.0,59696.0,0.335029]
[1726672252354,0.16305367,59700.0,59696.0,0.335029]
[1726672252540,0.16305367,59700.0,59698.0,0.167508]
[1726672252750,0.01871867,59699.0,59698.0,0.167508]
[1726672253584,0.01871867,59699.0,59695.0,0.335035]
[1726672253792,0.01871867,59699.0,59692.0,0.335047]
[1726672254006,0.268292,59712.0,59693.0,0.00335026]
[1726672254215,0.16305367,59711.0,59698.0,0.001]
[1726672254439,0.02627697,59700.0,59699.0,0.0913]
[1726672255056,0.000821,59712.0,59699.0,0.0913]
[1726672255694,0.16305367,59711.0,59699.0,0.0913]
[1726672256750,0.18606746,59710.0,59699.0,0.0913]
[1726672256966,0.18606746,59710.0,59699.0,0.0923]
[1726672257185,0.01859146,59710.0,59709.0,0.167478]
[1726672257404,0.01859146,59710.0,59708.0,0.167481]
[1726672257615,0.01859146,59710.0,59709.0,0.167478]
[1726672258082,0.04486441,59710.0,59709.0,0.502435]
[1726672258307,0.02627295,59710.0,59709.0,0.502435]
[1726672258517,0.01859146,59710.0,59709.0,0.502435]
[1726672258725,0.01859146,59710.0,59709.0,0.167478]
[1726672258936,0.168292,59712.0,59705.0,0.334978]
[1726672259145,0.01859146,59710.0,59709.0,0.167478]
[1726672259375,0.007,59710.0,59707.0,0.334967]
[1726672259584,0.007,59710.0,59709.0,0.167478]
[1726672259800,0.000821,59712.0,59710.0,0.167475]
[1726672260324,0.000821,59712.0,59708.0,0.334961]
[1726672260538,0.000821,59712.0,59707.0,0.334967]
[1726672260741,0.000821,59712.0,59711.0,0.167473]
[1726672260956,0.000821,59712.0,59711.0,0.502419]
[1726672261395,0.000821,59712.0,59711.0,1.76971067]
[1726672261603,0.000821,59718.0,59716.0,0.602377]
[1726672261876,0.0045327,59721.0,59720.0,0.604344]
[1726672261877,0.0044327,59721.0,59720.0,0.604344]
[1726672262083,0.25110999,59734.0,59733.0,0.502234]
[1726672262305,0.000821,59736.0,59735.0,0.502218]
[1726672262516,0.000821,59736.0,59735.0,0.83703]
[1726672262972,0.000821,59736.0,59735.0,1.171842]
[1726672264321,0.001821,59736.0,59735.0,1.177842]
[1726672264542,0.000821,59736.0,59735.0,1.171842]
[1726672266517,0.000821,59736.0,59731.0,0.334831]
[1726672266737,0.000821,59736.0,59735.0,0.83703]
[1726672267217,0.000821,59736.0,59734.0,0.167407]
[1726672267431,0.01965784,59736.0,59735.0,0.167406]
[1726672267873,0.000821,59736.0,59721.0,0.1]
[1726672268089,0.000821,59736.0,59735.0,0.01]
[1726672268090,0.001821,59736.0,59735.0,0.01]
[1726672268369,0.168224,59736.0,59730.0,0.334838]
[1726672268579,0.167412,59733.0,59728.0,0.167424]
[1726672268793,0.000821,59736.0,59728.0,0.334848]
[1726672269031,0.000821,59736.0,59732.0,0.167412]
[1726672269277,0.16305367,59735.0,59720.0,0.067]
[1726672269521,0.16305367,59735.0,59727.0,0.334853]
[1726672269768,0.16305367,59735.0,59730.0,0.167419]
[1726672269769,0.167409,59734.0,59730.0,0.167419]
[1726672270021,0.16305367,59735.0,59725.0,0.167431]
[1726672270022,0.334824,59733.0,59725.0,0.167431]
[1726672270276,0.16305367,59733.0,59713.0,0.0931]
[1726672270484,0.16305367,59733.0,59725.0,0.167433]
[1726672270485,0.167422,59730.0,59725.0,0.167433]
[1726672270756,0.16305367,59729.0,59713.0,0.0931]
[1726672271047,0.167441,59723.0,59720.0,0.167447]
[1726672271238,0.167441,59723.0,59711.0,0.411246]
[1726672271445,0.334864,59726.0,59711.0,0.0763]
[1726672271661,0.01912131,59722.0,59711.0,0.0763]
[1726672271882,0.49793367,59723.0,59711.0,0.0763]
[1726672271883,0.16305367,59723.0,59719.0,0.167449]
[1726672272097,0.01912131,59721.0,59711.0,0.0763]
[1726672272324,0.167444,59722.0,59719.0,0.16745]
[1726672272528,0.01912131,59720.0,59719.0,0.16745]
[1726672272738,0.167444,59722.0,59719.0,0.16745]
[1726672272947,0.01912131,59720.0,59719.0,0.16745]
[1726672273160,0.167445,59721.0,59716.0,0.334918]
[1726672273409,0.49793567,59723.0,59704.0,0.0931]
[1726672273410,0.334924,59715.0,59704.0,0.0931]
[1726672273629,0.334929,59714.0,59706.0,0.334974]
[1726672273853,0.167473,59711.0,59708.0,0.167481]
[1726672274060,0.23278137,59718.0,59702.0,0.334994]
[1726672274264,0.01893855,59710.0,59709.0,0.167478]
[1726672274478,0.167463,59715.0,59709.0,0.334957]
[1726672274695,0.49796767,59717.0,59701.0,0.0789]
[1726672274696,0.16305367,59717.0,59701.0,0.0789]
[1726672274923,0.01893855,59714.0,59705.0,0.23278137]
[1726672275133,0.01877699,59716.0,59706.0,0.00334898]
[1726672275360,0.80592275,59734.0,59715.0,0.23278137]
[1726672275361,0.167423,59729.0,59715.0,0.23278137]
[1726672275584,0.167423,59729.0,59706.0,0.16640265]
[1726672275585,0.167432,59726.0,59710.0,0.23278137]
[1726672275794,0.01877699,59724.0,59711.0,0.00334873]
[1726672276465,0.001,59715.0,59711.0,0.00334873]
[1726672276682,0.02626704,59725.0,59714.0,0.23278137]
[1726672276892,0.02626704,59725.0,59715.0,0.00334841]
[1726672277100,0.005,59724.0,59715.0,0.00334841]
[1726672277341,0.005,59724.0,59714.0,0.39583504]
[1726672277544,0.02626704,59725.0,59714.0,0.39583504]
[1726672277751,0.001,59715.0,59714.0,0.39583504]
[1726672277959,0.001,59715.0,59714.0,0.49583504]
[1726672278387,0.02626704,59725.0,59714.0,0.50603776]
[1726672278643,0.02626704,59725.0,59724.0,0.502309]
[1726672279300,0.02626704,59725.0,59724.0,0.837182]
[1726672280992,0.02626704,59725.0,59724.0,0.502309]
[1726672281407,0.04513896,59725.0,59724.0,0.502309]
[1726672281618,0.02626704,59725.0,59724.0,0.502309]
[1726672282267,0.02826704,59725.0,59724.0,0.503949]
[1726672282705,0.19570104,59725.0,59724.0,0.00164]
[1726672282914,1.36335871,59725.0,59724.0,0.00164]
[1726672283133,1.02109559,59725.0,59724.0,0.00164]
[1726672284055,0.68622759,59725.0,59724.0,0.00164]
[1726672285386,0.02087192,59725.0,59724.0,0.00164]
[1726672285592,0.01887192,59725.0,59724.0,0.503949]
[1726672286004,0.167421,59730.0,59727.0,0.167428]
[1726672286212,0.167421,59730.0,59725.0,0.334864]
[1726672286213,0.02626537,59728.0,59725.0,0.167431]
[1726672286395,0.01887192,59725.0,59724.0,0.503949]
[1726672286647,0.02626537,59728.0,59727.0,0.502284]
[1726672286860,0.02626537,59728.0,59727.0,0.83714]
[1726672288111,0.02626537,59728.0,59727.0,0.502284]
[1726672288324,0.02626537,59728.0,59727.0,0.167428]
[1726672288536,0.04525615,59728.0,59727.0,0.167428]
[1726672290314,0.04525615,59728.0,59724.0,0.00664]
[1726672290522,0.04525615,59728.0,59724.0,0.00164]
[1726672290701,0.04525615,59728.0,59727.0,0.170428]
[1726672291198,0.04525615,59728.0,59727.0,0.167428]
[1726672291748,0.02626537,59728.0,59727.0,0.167428]
[1726672292984,0.04525563,59728.0,59727.0,0.167428]
[1726672293204,0.04525563,59728.0,59726.0,0.16743]
[1726672293417,0.04525563,59728.0,59727.0,0.167428]
[1726672293888,0.04525563,59728.0,59725.0,0.334866]
[1726672294096,0.04525563,59728.0,59726.0,0.16743]
[1726672294316,0.167434,59725.0,59724.0,0.00164]
[1726672294544,0.502302,59725.0,59724.0,0.00164]
[1726672294748,0.52128739,59725.0,59724.0,0.00164]
[1726672294971,0.18641939,59725.0,59724.0,0.00164]
[1726672295183,0.52128739,59725.0,59724.0,0.00164]
[1726672295401,0.18641939,59725.0,59724.0,0.00164]
[1726672296944,0.01898539,59725.0,59724.0,0.00164]
[1726672297346,0.33486,59727.0,59724.0,0.00164]
[1726672297577,0.01898539,59725.0,59724.0,0.00164]
[1726672297785,0.167432,59726.0,59724.0,0.00164]
[1726672298015,0.01898539,59725.0,59724.0,0.00164]
[1726672298907,0.18641939,59725.0,59724.0,0.00164]
[1726672300515,0.18641939,59725.0,59724.0,0.00264]
[1726672300729,0.01898539,59725.0,59724.0,0.00264]
[1726672301153,0.18641939,59725.0,59724.0,0.00264]
[1726672302476,0.01898539,59725.0,59724.0,0.00264]
[1726672303018,0.01898539,59725.0,59724.0,0.504949]
[1726672303427,0.16305367,59728.0,59724.0,0.504949]
[1726672303428,0.16305367,59728.0,59725.0,0.167432]
[1726672303634,0.0189286,59725.0,59724.0,0.170076]
[1726672303836,0.0189286,59725.0,59724.0,0.504947]
[1726672304050,0.16305367,59728.0,59725.0,0.167433]
[1726672304283,0.16305367,59728.0,59726.0,0.167431]
[1726672304500,0.16305367,59728.0,59724.0,0.337511]
[1726672304920,0.16305367,59728.0,59726.0,0.16743]
[1726672305129,0.33048067,59728.0,59725.0,0.167433]
[1726672305345,0.16305367,59728.0,59725.0,0.167434]
[1726672305567,0.16305367,59728.0,59724.0,0.169076]
[1726672305780,0.16305367,59728.0,59724.0,0.00164]
[1726672306013,0.16305367,59728.0,59725.0,0.334865]
[1726672306235,0.335628,59736.0,59724.0,0.00164]
[1726672306449,0.000821,59736.0,59731.0,0.33483]
[1726672306662,0.000821,59736.0,59733.0,0.167411]
[1726672307328,0.000821,59736.0,59731.0,0.33483]
[1726672307329,0.335627,59736.0,59731.0,0.167416]
[1726672307546,0.167407,59735.0,59731.0,0.167416]
[1726672307996,0.000821,59736.0,59733.0,0.168411]
[1726672308253,0.00982,59734.0,59733.0,0.168411]
[1726672308483,0.00082,59734.0,59733.0,0.167411]
[1726672308740,0.00982,59734.0,59733.0,0.167411]
[1726672308987,0.00982,59734.0,59733.0,0.502234]
[1726672310120,0.0197486,59734.0,59733.0,0.502234]
[1726672310328,0.00082,59734.0,59733.0,0.502234]
[1726672310559,0.0197486,59734.0,59733.0,0.502234]
[1726672310797,0.00082,59734.0,59733.0,0.502234]
[1726672311018,0.00282,59734.0,59733.0,0.502234]
[1726672311227,0.0217486,59734.0,59733.0,0.502234]
[1726672311433,0.00282,59734.0,59733.0,0.502234]
[1726672312280,0.0217486,59734.0,59733.0,0.502234]
[1726672312982,0.0480106,59734.0,59733.0,0.502234]
[1726672313437,0.0217486,59734.0,59733.0,0.502234]
[1726672313660,0.00282,59734.0,59733.0,0.502234]
[1726672313883,0.00282,59734.0,59733.0,0.837057]
[1726672314348,0.02908258,59734.0,59733.0,0.837057]
[1726672317254,0.02708258,59734.0,59733.0,0.837057]
[1726672317922,0.02708258,59734.0,59733.0,0.839057]
[1726672318340,0.00082,59734.0,59733.0,0.839057]
[1726672318584,0.00082,59734.0,59733.0,0.169411]
[1726672318809,0.00082,59734.0,59732.0,0.029082]
[1726672319255,0.00082,59734.0,59733.0,0.003]
[1726672319704,1.00091567,59734.0,59733.0,0.003]
[1726672319958,0.33128167,59734.0,59733.0,0.003]
[1726672320864,1.00091567,59734.0,59733.0,0.003]
[1726672321338,0.16387367,59734.0,59725.0,0.00164]
[1726672321568,0.65755397,59726.0,59725.0,0.00164]
[1726672321777,1.15546964,59726.0,59725.0,0.00164]
[1726672321987,1.51333164,59726.0,59725.0,0.00164]
[1726672322225,1.60413164,59726.0,59725.0,0.00164]
[1726672322441,1.67973164,59726.0,59725.0,0.00164]
[1726672322653,1.68173164,59726.0,59725.0,0.00164]
[1726672322860,1.67973164,59726.0,59725.0,0.00164]
[1726672323332,1.16660867,59726.0,59725.0,0.00164]
[1726672323561,0.33048467,59726.0,59725.0,0.00164]
[1726672323771,1.00020867,59726.0,59725.0,0.00164]
[1726672325707,1.02647628,59726.0,59725.0,0.00164]
[1726672327273,1.36133828,59726.0,59725.0,0.00164]
[1726672327486,1.38433828,59726.0,59725.0,0.00164]
[1726672328221,1.05747628,59726.0,59725.0,0.00264]
[1726672329687,1.38433828,59726.0,59725.0,0.00164]
[1726672329904,1.39133828,59726.0,59725.0,0.00264]
[1726672331359,1.38433828,59726.0,59725.0,0.00164]
[1726672331610,1.04947628,59726.0,59725.0,0.00164]
[1726672331795,1.07633155,59726.0,59725.0,0.00264]
[1726672332245,0.71046955,59726.0,59725.0,0.00164]
[1726672332693,1.05233155,59726.0,59725.0,0.00264]
[1726672333766,1.04533155,59726.0,59725.0,0.00164]
[1726672334432,1.50319355,59726.0,59725.0,0.00164]
[1726672334647,1.60282594,59726.0,59725.0,0.00164]
[1726672334832,1.93968794,59726.0,59725.0,0.00164]
[1726672335323,2.04002661,59726.0,59725.0,0.00164]
[1726672335548,1.93968794,59726.0,59725.0,0.00164]
[1726672336054,1.94768794,59726.0,59725.0,0.00264]
[1726672336290,1.94970868,59726.0,59725.0,0.00164]
[1726672336525,1.57282594,59726.0,59725.0,0.00164]
[1726672336754,1.58682594,59726.0,59725.0,0.00264]
[1726672336942,1.57282594,59726.0,59725.0,0.00164]
[1726672337382,1.58682594,59726.0,59725.0,0.00264]
[1726672337605,1.57282594,59726.0,59725.0,0.00164]
[1726672338034,1.57482594,59726.0,59725.0,0.00164]
[1726672339189,1.58682594,59726.0,59725.0,0.00164]
[1726672340047,1.58882594,59726.0,59725.0,0.00164]
[1726672340262,1.58682594,59726.0,59725.0,0.00164]
[1726672341506,1.49092594,59726.0,59725.0,0.00164]
[1726672342126,1.46792594,59726.0,59725.0,0.00164]
[1726672342345,1.03306394,59726.0,59725.0,0.00164]
[1726672343393,1.36792594,59726.0,59725.0,0.00164]
[1726672343603,1.35392594,59726.0,59725.0,0.00164]
[1726672343812,1.36292594,59726.0,59725.0,0.00264]
[1726672344437,1.38592594,59726.0,59725.0,0.00264]
[1726672346124,1.82078794,59726.0,59725.0,0.00264]
[1726672346369,2.01108794,59726.0,59725.0,0.00264]
[1726672347421,2.03736139,59726.0,59725.0,0.00264]
[1726672349784,2.00736139,59726.0,59725.0,0.00264]
[1726672350068,2.03736139,59726.0,59725.0,0.00264]
[1726672351223,2.01108794,59726.0,59725.0,0.00264]
[1726672351441,1.98108794,59726.0,59725.0,0.00264]
[1726672352078,2.01108794,59726.0,59725.0,0.00264]
[1726672352504,1.60522594,59726.0,59725.0,0.00164]
[1726672352723,1.50892594,59726.0,59725.0,0.00164]
[1726672352940,1.50692594,59726.0,59725.0,0.00164]
[1726672353385,1.45392594,59726.0,59725.0,0.00164]
[1726672354326,1.01906394,59726.0,59725.0,0.00164]
[1726672354775,1.03306394,59726.0,59725.0,0.00164]
[1726672354997,1.01906394,59726.0,59725.0,0.00164]
[1726672355274,1.04533284,59726.0,59725.0,0.00164]
[1726672355478,1.02706394,59726.0,59725.0,0.00164]
[1726672358397,1.05333245,59726.0,59725.0,0.00164]
[1726672359696,0.71847045,59726.0,59725.0,0.00164]
[1726672359919,1.05333245,59726.0,59725.0,0.00164]
[1726672360616,0.05312378,59726.0,59725.0,0.00164]
[1726672360852,0.02685527,59726.0,59725.0,0.169074]
[1726672361082,0.02685527,59726.0,59725.0,0.503942]
[1726672361320,0.02685527,59726.0,59725.0,0.83881]
[1726672361505,0.008,59726.0,59725.0,0.83881]
[1726672362692,0.168226,59736.0,59732.0,0.167413]
[1726672363519,0.167406,59735.0,59730.0,0.334835]
[1726672363746,0.167406,59735.0,59731.0,0.167415]
[1726672363968,0.167406,59735.0,59732.0,0.167413]
[1726672364193,0.167406,59735.0,59732.0,0.169413]
[1726672364852,0.167406,59735.0,59732.0,0.002]
[1726672365067,0.02708409,59734.0,59732.0,0.002]
[1726672366019,0.19449409,59734.0,59732.0,0.002]
[1726672366244,0.02708409,59734.0,59732.0,0.002]
[1726672367338,0.19449309,59734.0,59732.0,0.002]
[1726672367551,0.02708409,59734.0,59732.0,0.002]
[1726672367769,0.02708409,59734.0,59732.0,0.169413]
[1726672367982,0.02708409,59734.0,59733.0,0.167411]
[1726672369926,0.02708409,59734.0,59732.0,0.167414]
[1726672370573,0.02708409,59734.0,59733.0,0.002]
[1726672370807,0.02708409,59734.0,59732.0,0.167414]
[1726672371468,0.02708409,59734.0,59732.0,0.169414]
[1726672372107,0.02708409,59734.0,59733.0,0.167411]
[1726672372331,0.02708409,59734.0,59732.0,0.002]
[1726672373036,0.02708409,59734.0,59733.0,0.167411]
[1726672373892,0.03108409,59734.0,59733.0,0.167411]
[1726672374311,0.02708409,59734.0,59733.0,0.167411]
[1726672374522,0.02708409,59734.0,59733.0,0.169411]
[1726672374747,0.02708409,59734.0,59733.0,0.002]
[1726672376748,0.04612001,59734.0,59733.0,0.002]
[1726672379437,0.21352801,59734.0,59733.0,0.002]
[1726672379654,0.54834501,59734.0,59733.0,0.002]
[1726672380087,0.04612001,59734.0,59733.0,0.002]
[1726672380532,0.21352801,59734.0,59733.0,0.002]
[1726672381000,0.04612001,59734.0,59732.0,0.001642]
[1726672381211,0.04612001,59734.0,59733.0,0.001]
[1726672381620,0.04612001,59734.0,59732.0,0.001642]
[1726672382098,0.04612001,59734.0,59733.0,0.002]
[1726672382342,0.04612001,59734.0,59733.0,0.167411]
[1726672382559,0.04612001,59734.0,59732.0,0.169055]
[1726672384054,0.04612001,59734.0,59733.0,0.002]
[1726672384272,0.04612001,59734.0,59733.0,0.169411]
[1726672385352,0.04612001,59734.0,59733.0,0.504234]
[1726672385558,0.04612001,59734.0,59733.0,0.169411]
[1726672386280,0.04612001,59734.0,59732.0,0.001642]
[1726672386914,0.04612001,59734.0,59732.0,0.169055]
[1726672387137,0.04612001,59734.0,59733.0,0.167411]
[1726672387370,0.04612001,59734.0,59732.0,0.001642]
[1726672387591,0.04612001,59734.0,59733.0,0.167411]
[1726672388289,0.04612001,59734.0,59732.0,0.003642]
[1726672388537,1.00011067,59733.0,59732.0,0.003642]
[1726672388754,0.66528767,59733.0,59732.0,0.003642]
[1726672388971,1.53222907,59733.0,59732.0,0.003642]
[1726672389204,1.76202907,59733.0,59732.0,0.003642]
[1726672389423,2.09685207,59733.0,59732.0,0.003642]
[1726672389667,2.09885207,59733.0,59732.0,0.003642]
[1726672390105,2.09885207,59733.0,59732.0,0.001642]
[1726672390106,2.12885207,59733.0,59732.0,0.001642]
[1726672391264,2.11285207,59733.0,59732.0,0.001642]
[1726672391498,2.09885207,59733.0,59732.0,0.001642]
[1726672391731,2.11285207,59733.0,59732.0,0.001642]
[1726672391961,2.17285207,59733.0,59732.0,0.001642]
[1726672392385,2.19912313,59733.0,59732.0,0.001642]
[1726672393015,2.53394613,59733.0,59732.0,0.001642]
[1726672393229,2.19912313,59733.0,59732.0,0.001642]
[1726672394374,2.15885207,59733.0,59732.0,0.001642]
[1726672394808,2.17285207,59733.0,59732.0,0.001642]
[1726672395027,1.4679681,59733.0,59732.0,0.001642]
[1726672395668,1.3679681,59733.0,59732.0,0.001642]
[1726672396121,0.3494991,59733.0,59732.0,0.001642]
[1726672396339,0.3634991,59733.0,59732.0,0.001642]
[1726672396554,0.1960881,59733.0,59732.0,0.001642]
[1726672396772,0.6983221,59733.0,59732.0,0.001642]
[1726672396980,0.3634991,59733.0,59732.0,0.001642]
[1726672397209,0.03303443,59733.0,59732.0,0.169056]
[1726672397429,0.03303443,59733.0,59732.0,0.001642]
[1726672397644,0.014,59733.0,59732.0,0.001642]
[1726672397866,0.02626462,59733.0,59732.0,0.001642]
[1726672398075,0.0288697,59733.0,59732.0,0.001642]
[1726672398498,0.0168697,59733.0,59732.0,0.169056]
[1726672398976,0.0188697,59733.0,59732.0,0.001642]
[1726672399222,0.0188697,59733.0,59732.0,0.169056]
[1726672400327,0.0188697,59733.0,59732.0,0.001642]
[1726672401847,0.5211037,59733.0,59732.0,0.001642]
[1726672402057,0.21254535,59733.0,59732.0,0.001642]
[1726672402710,0.54736835,59733.0,59732.0,0.001642]
[1726672402923,1.04524502,59733.0,59732.0,0.001642]
[1726672403137,0.71042202,59733.0,59732.0,0.001642]
[1726672404046,0.20818802,59733.0,59732.0,0.001642]